[Event "Titled Tuesday Blitz November 30 2021"]
[White "Petrovskyi, Vadym"]
[Black "Rasulov, Vugar"]
[WhiteFideId "14165210"]
[BlackFideId "13402390"]
[WhiteElo "2377"]
[BlackElo "2560"]
[Result "0-1"]
[Round "09"]
[TimeControl "180+1"]
[Date "2021.11.30"]
[WhiteClock "0:00:03"]
[BlackClock "0:00:13"]

1. e4 {[%clk 0:03:00]}  c5 {[%clk 0:02:59]} 2. Nf3 {[%clk 0:03:00]}  d6 {[%clk 0:03:00]} 3. d4 {[%clk 0:03:01]}  cxd4 {[%clk 0:03:00]} 4. Nxd4 {[%clk 0:03:02]}  Nf6 {[%clk 0:03:01]} 5. Nc3 {[%clk 0:03:02]}  a6 {[%clk 0:03:02]} 6. Bg5 {[%clk 0:03:02]}  e6 {[%clk 0:03:00]} 7. f4 {[%clk 0:03:02]}  Be7 {[%clk 0:03:00]} 8. Qf3 {[%clk 0:03:02]}  Nbd7 {[%clk 0:03:01]} 9. O-O-O {[%clk 0:03:00]}  Qc7 {[%clk 0:03:01]} 10. g4 {[%clk 0:02:58]}  b5 {[%clk 0:03:01]} 11. Bxf6 {[%clk 0:02:58]}  Nxf6 {[%clk 0:03:02]} 12. g5 {[%clk 0:02:59]}  Nd7 {[%clk 0:03:03]} 13. f5 {[%clk 0:02:59]}  Nc5 {[%clk 0:03:04]} 14. f6 {[%clk 0:02:51]}  gxf6 {[%clk 0:03:04]} 15. gxf6 {[%clk 0:02:52]}  Bf8 {[%clk 0:03:05]} 16. a3 {[%clk 0:02:15]}  Rb8 {[%clk 0:03:04]} 17. Rg1 {[%clk 0:02:14]}  h5 {[%clk 0:03:02]} 18. Rg7 {[%clk 0:02:07]}  b4 {[%clk 0:02:58]} 19. axb4 {[%clk 0:02:06]}  Rxb4 {[%clk 0:02:59]} 20. Bh3 {[%clk 0:02:02]}  Qa5 {[%clk 0:02:38]} 21. Nc6 {[%clk 0:01:30]}  Qb6 {[%clk 0:02:33]} 22. Nxb4 {[%clk 0:01:29]}  Qxb4 {[%clk 0:02:34]} 23. Nd5 {[%clk 0:01:06]}  exd5 {[%clk 0:02:11]} 24. Bxc8 {[%clk 0:01:05]}  Qxe4 {[%clk 0:01:54]} 25. Qg3 {[%clk 0:00:46]}  h4 {[%clk 0:01:44]} 26. Qf2 {[%clk 0:00:34]}  Kd8 {[%clk 0:01:37]} 27. Bf5 {[%clk 0:00:31]}  Qa4 {[%clk 0:01:29]} 28. Kb1 {[%clk 0:00:31]}  Bxg7 {[%clk 0:01:13]} 29. fxg7 {[%clk 0:00:32]}  Rg8 {[%clk 0:01:14]} 30. Rd4 {[%clk 0:00:31]}  Qe8 {[%clk 0:01:06]} 31. Rxd5 {[%clk 0:00:29]}  Kc7 {[%clk 0:00:51]} 32. Qd2 {[%clk 0:00:10]}  Qc6 {[%clk 0:00:41]} 33. Qa5+ {[%clk 0:00:07]}  Kb7 {[%clk 0:00:42]} 34. Rd4 {[%clk 0:00:07]}  Rxg7 {[%clk 0:00:34]} 35. Qe1 {[%clk 0:00:07]}  f6 {[%clk 0:00:22]} 36. Rb4+ {[%clk 0:00:06]}  Ka7 {[%clk 0:00:21]} 37. Rc4 {[%clk 0:00:06]}  Qd5 {[%clk 0:00:19]} 38. Qf1 {[%clk 0:00:06]}  Re7 {[%clk 0:00:12]} 39. Rxh4 {[%clk 0:00:05]}  Qd2 {[%clk 0:00:12]} 40. Qc4 {[%clk 0:00:03]}  Re1+ {[%clk 0:00:12]} 41. Ka2 {[%clk 0:00:03]}  Qa5+ {[%clk 0:00:13]} 0-1


[Site "https://www.chess.com"]

[Event "Titled Tuesday Blitz November 30 2021"]
[White "Weetik, Vjacheslav"]
[Black "Siva Mahadevan"]
[WhiteFideId "4153472"]
[BlackFideId "25043153"]
[WhiteElo "2469"]
[BlackElo "2203"]
[Result "1/2-1/2"]
[Round "09"]
[TimeControl "180+1"]
[Date "2021.11.30"]
[WhiteClock "0:00:17"]
[BlackClock "0:00:26"]

1. d4 {[%clk 0:02:59]}  Nf6 {[%clk 0:02:56]} 2. Bf4 {[%clk 0:02:59]}  g6 {[%clk 0:02:56]} 3. Nf3 {[%clk 0:02:54]}  Bg7 {[%clk 0:02:56]} 4. Nc3 {[%clk 0:02:53]}  d5 {[%clk 0:02:57]} 5. e3 {[%clk 0:02:53]}  O-O {[%clk 0:02:57]} 6. Be2 {[%clk 0:02:54]}  c5 {[%clk 0:02:56]} 7. dxc5 {[%clk 0:02:53]}  Nbd7 {[%clk 0:02:55]} 8. Nxd5 {[%clk 0:02:42]}  Nxd5 {[%clk 0:02:56]} 9. Qxd5 {[%clk 0:02:42]}  Bxb2 {[%clk 0:02:56]} 10. O-O {[%clk 0:02:42]}  Bxa1 {[%clk 0:02:57]} 11. Rxa1 {[%clk 0:02:41]}  Qa5 {[%clk 0:02:57]} 12. Bh6 {[%clk 0:02:11]}  Qxc5 {[%clk 0:02:57]} 13. Qxc5 {[%clk 0:02:01]}  Nxc5 {[%clk 0:02:58]} 14. Bxf8 {[%clk 0:02:01]}  Kxf8 {[%clk 0:02:59]} 15. Nd4 {[%clk 0:01:51]}  Bd7 {[%clk 0:02:57]} 16. Kf1 {[%clk 0:01:38]}  Rc8 {[%clk 0:02:57]} 17. Ke1 {[%clk 0:01:36]}  e5 {[%clk 0:02:47]} 18. Nb3 {[%clk 0:01:29]}  Na4 {[%clk 0:02:47]} 19. Bd3 {[%clk 0:01:12]}  Be6 {[%clk 0:02:37]} 20. Kd2 {[%clk 0:01:12]}  b6 {[%clk 0:02:35]} 21. f4 {[%clk 0:01:02]}  Ke7 {[%clk 0:02:29]} 22. fxe5 {[%clk 0:00:58]}  Nc5 {[%clk 0:02:29]} 23. Nd4 {[%clk 0:00:57]}  Nd7 {[%clk 0:02:28]} 24. a4 {[%clk 0:00:57]}  Rc5 {[%clk 0:02:07]} 25. Bb5 {[%clk 0:00:49]}  Nxe5 {[%clk 0:02:04]} 26. a5 {[%clk 0:00:49]}  bxa5 {[%clk 0:02:04]} 27. Rxa5 {[%clk 0:00:45]}  Rc7 {[%clk 0:02:04]} 28. Bd3 {[%clk 0:00:32]}  Nc4+ {[%clk 0:01:09]} 29. Bxc4 {[%clk 0:00:31]}  Bxc4 {[%clk 0:01:10]} 30. e4 {[%clk 0:00:24]}  a6 {[%clk 0:01:09]} 31. e5 {[%clk 0:00:22]}  Bf1 {[%clk 0:01:06]} 32. g3 {[%clk 0:00:21]}  h5 {[%clk 0:01:06]} 33. h4 {[%clk 0:00:21]}  Rd7 {[%clk 0:01:04]} 34. Ke3 {[%clk 0:00:21]}  Rc7 {[%clk 0:01:03]} 35. Kd2 {[%clk 0:00:18]}  Rc8 {[%clk 0:01:01]} 36. c3 {[%clk 0:00:15]}  Bc4 {[%clk 0:01:00]} 37. Ke3 {[%clk 0:00:14]}  Rc7 {[%clk 0:01:00]} 38. Kd2 {[%clk 0:00:15]}  Rb7 {[%clk 0:01:00]} 39. Rc5 {[%clk 0:00:14]}  Bf1 {[%clk 0:00:57]} 40. Rc6 {[%clk 0:00:10]}  Rb2+ {[%clk 0:00:57]} 41. Ke3 {[%clk 0:00:10]}  Kd7 {[%clk 0:00:30]} 42. Rf6 {[%clk 0:00:10]}  Bc4 {[%clk 0:00:31]} 43. Nf3 {[%clk 0:00:04]}  a5 {[%clk 0:00:27]} 44. Kd4 {[%clk 0:00:04]}  Be6 {[%clk 0:00:27]} 45. Ng5 {[%clk 0:00:05]}  a4 {[%clk 0:00:17]} 46. Nxe6 {[%clk 0:00:05]}  fxe6 {[%clk 0:00:18]} 47. Rf7+ {[%clk 0:00:05]}  Kc6 {[%clk 0:00:18]} 48. Ra7 {[%clk 0:00:06]}  Rg2 {[%clk 0:00:17]} 49. Rxa4 {[%clk 0:00:05]}  Rxg3 {[%clk 0:00:18]} 50. Ra6+ {[%clk 0:00:05]}  Kd7 {[%clk 0:00:18]} 51. Ra7+ {[%clk 0:00:06]}  Kc6 {[%clk 0:00:18]} 52. Ra6+ {[%clk 0:00:06]}  Kd7 {[%clk 0:00:18]} 53. Ra7+ {[%clk 0:00:07]}  Kd8 {[%clk 0:00:14]} 54. Rg7 {[%clk 0:00:06]}  Rg4+ {[%clk 0:00:13]} 55. Kc5 {[%clk 0:00:06]}  Rxh4 {[%clk 0:00:13]} 56. Kd6 {[%clk 0:00:07]}  Kc8 {[%clk 0:00:14]} 57. Kxe6 {[%clk 0:00:07]}  Rc4 {[%clk 0:00:14]} 58. Rg8+ {[%clk 0:00:06]}  Kc7 {[%clk 0:00:15]} 59. Rxg6 {[%clk 0:00:07]}  Rc6+ {[%clk 0:00:15]} 60. Kf7 {[%clk 0:00:07]}  Rxg6 {[%clk 0:00:16]} 61. Kxg6 {[%clk 0:00:07]}  h4 {[%clk 0:00:17]} 62. e6 {[%clk 0:00:04]}  h3 {[%clk 0:00:16]} 63. e7 {[%clk 0:00:04]}  h2 {[%clk 0:00:17]} 64. e8=Q {[%clk 0:00:05]}  h1=Q {[%clk 0:00:18]} 65. Qe5+ {[%clk 0:00:05]}  Kc6 {[%clk 0:00:17]} 66. Qd4 {[%clk 0:00:04]}  Qg2+ {[%clk 0:00:17]} 67. Kf5 {[%clk 0:00:05]}  Qd5+ {[%clk 0:00:16]} 68. Kf4 {[%clk 0:00:04]}  Qxd4+ {[%clk 0:00:16]} 69. cxd4 {[%clk 0:00:05]}  Kd5 {[%clk 0:00:17]} 70. Ke3 {[%clk 0:00:06]}  Kd6 {[%clk 0:00:18]} 71. Ke4 {[%clk 0:00:07]}  Ke6 {[%clk 0:00:18]} 72. Ke3 {[%clk 0:00:07]}  Kd5 {[%clk 0:00:19]} 73. Kd3 {[%clk 0:00:08]}  Kd6 {[%clk 0:00:20]} 74. Kc4 {[%clk 0:00:08]}  Kc6 {[%clk 0:00:20]} 75. d5+ {[%clk 0:00:09]}  Kd6 {[%clk 0:00:21]} 76. Kd4 {[%clk 0:00:10]}  Kd7 {[%clk 0:00:21]} 77. Ke5 {[%clk 0:00:11]}  Ke7 {[%clk 0:00:22]} 78. Kd4 {[%clk 0:00:11]}  Kd6 {[%clk 0:00:22]} 79. Kc4 {[%clk 0:00:12]}  Kd7 {[%clk 0:00:23]} 80. Kc5 {[%clk 0:00:13]}  Kc7 {[%clk 0:00:23]} 81. d6+ {[%clk 0:00:13]}  Kd7 {[%clk 0:00:24]} 82. Kd5 {[%clk 0:00:14]}  Kd8 {[%clk 0:00:25]} 83. Ke5 {[%clk 0:00:14]}  Kd7 {[%clk 0:00:25]} 84. Kd5 {[%clk 0:00:15]}  Kd8 {[%clk 0:00:26]} 85. Kc6 {[%clk 0:00:16]}  Kc8 {[%clk 0:00:26]} 86. Kc5 {[%clk 0:00:16]}  Kd7 {[%clk 0:00:26]} 87. Kd5 {[%clk 0:00:17]} 1/2-1/2


[Site "https://www.chess.com"]

[Event "Titled Tuesday Blitz November 30 2021"]
[White "Arencibia Monduy, Antonio"]
[Black "Costachi, Mihnea"]
[WhiteFideId "3507939"]
[BlackFideId "1217518"]
[WhiteElo "2588"]
[BlackElo "2482"]
[Result "0-1"]
[Round "10"]
[TimeControl "180+1"]
[Date "2021.11.30"]
[WhiteClock "0:00:01"]
[BlackClock "0:01:01"]

1. c4 {[%clk 0:03:00]}  Nf6 {[%clk 0:02:58]} 2. Nf3 {[%clk 0:03:00]}  b6 {[%clk 0:02:57]} 3. g3 {[%clk 0:03:01]}  Bb7 {[%clk 0:02:58]} 4. Bg2 {[%clk 0:03:01]}  g6 {[%clk 0:02:58]} 5. O-O {[%clk 0:03:02]}  Bg7 {[%clk 0:02:59]} 6. Nc3 {[%clk 0:03:02]}  O-O {[%clk 0:02:58]} 7. d4 {[%clk 0:03:02]}  Ne4 {[%clk 0:02:57]} 8. Qc2 {[%clk 0:02:56]}  Nxc3 {[%clk 0:02:57]} 9. Qxc3 {[%clk 0:02:54]}  c5 {[%clk 0:02:53]} 10. e3 {[%clk 0:02:54]}  d6 {[%clk 0:02:48]} 11. Qd3 {[%clk 0:02:37]}  cxd4 {[%clk 0:02:43]} 12. exd4 {[%clk 0:02:28]}  Nc6 {[%clk 0:02:43]} 13. Be3 {[%clk 0:02:27]}  Rc8 {[%clk 0:02:42]} 14. Rac1 {[%clk 0:02:26]}  Qd7 {[%clk 0:02:38]} 15. Rfd1 {[%clk 0:02:22]}  Rc7 {[%clk 0:02:36]} 16. b3 {[%clk 0:02:18]}  Rfc8 {[%clk 0:02:35]} 17. d5 {[%clk 0:02:14]}  Ne5 {[%clk 0:02:34]} 18. Nxe5 {[%clk 0:02:14]}  Bxe5 {[%clk 0:02:35]} 19. Re1 {[%clk 0:02:09]}  b5 {[%clk 0:02:27]} 20. f4 {[%clk 0:01:57]}  bxc4 {[%clk 0:02:26]} 21. bxc4 {[%clk 0:01:56]}  Bf6 {[%clk 0:02:26]} 22. Bf1 {[%clk 0:01:39]}  Ba6 {[%clk 0:02:21]} 23. Qb3 {[%clk 0:01:29]}  h5 {[%clk 0:02:16]} 24. Bf2 {[%clk 0:01:15]}  h4 {[%clk 0:02:15]} 25. gxh4 {[%clk 0:01:14]}  Qg4+ {[%clk 0:02:12]} 26. Qg3 {[%clk 0:01:08]}  Qxg3+ {[%clk 0:02:06]} 27. hxg3 {[%clk 0:01:08]}  Bxc4 {[%clk 0:02:07]} 28. Bxc4 {[%clk 0:01:08]}  Rxc4 {[%clk 0:02:08]} 29. Rxc4 {[%clk 0:01:07]}  Rxc4 {[%clk 0:02:09]} 30. Bxa7 {[%clk 0:01:06]}  Ra4 {[%clk 0:02:09]} 31. Bf2 {[%clk 0:01:03]}  Rxa2 {[%clk 0:02:09]} 32. Rd1 {[%clk 0:01:04]}  Kg7 {[%clk 0:02:03]} 33. Kg2 {[%clk 0:01:04]}  Kf8 {[%clk 0:01:54]} 34. Kf3 {[%clk 0:01:04]}  Ra3+ {[%clk 0:01:53]} 35. Kg4 {[%clk 0:01:01]}  Kg7 {[%clk 0:01:53]} 36. h5 {[%clk 0:00:53]}  gxh5+ {[%clk 0:01:53]} 37. Kxh5 {[%clk 0:00:53]}  Bb2 {[%clk 0:01:53]} 38. Rd2 {[%clk 0:00:45]}  Bf6 {[%clk 0:01:50]} 39. Kg4 {[%clk 0:00:33]}  Kg6 {[%clk 0:01:50]} 40. f5+ {[%clk 0:00:27]}  Kg7 {[%clk 0:01:50]} 41. Kh5 {[%clk 0:00:09]}  Be5 {[%clk 0:01:47]} 42. Kg4 {[%clk 0:00:08]}  Kf6 {[%clk 0:01:47]} 43. Re2 {[%clk 0:00:04]}  Ra4+ {[%clk 0:01:45]} 44. Kh3 {[%clk 0:00:04]}  Kxf5 {[%clk 0:01:45]} 45. Be3 {[%clk 0:00:04]}  Ra3 {[%clk 0:01:44]} 46. Rf2+ {[%clk 0:00:04]}  Kg6 {[%clk 0:01:30]} 47. Bf4 {[%clk 0:00:03]}  Rd3 {[%clk 0:01:24]} 48. Bxe5 {[%clk 0:00:03]}  dxe5 {[%clk 0:01:25]} 49. Kg4 {[%clk 0:00:01]}  f5+ {[%clk 0:01:21]} 50. Kh3 {[%clk 0:00:02]}  f4 {[%clk 0:01:14]} 51. Kh4 {[%clk 0:00:02]}  Rxg3 {[%clk 0:01:11]} 52. Rd2 {[%clk 0:00:02]}  Kf5 {[%clk 0:01:08]} 53. d6 {[%clk 0:00:03]}  Rg1 {[%clk 0:01:05]} 54. Kh3 {[%clk 0:00:02]}  exd6 {[%clk 0:01:04]} 55. Rxd6 {[%clk 0:00:02]}  f3 {[%clk 0:01:04]} 56. Rd8 {[%clk 0:00:01]}  e4 {[%clk 0:01:02]} 57. Kh2 {[%clk 0:00:01]}  Rg2+ {[%clk 0:01:01]} 58. Kh1 {[%clk 0:00:02]}  Rg6 {[%clk 0:01:02]} 59. Rf8+ {[%clk 0:00:02]}  Ke5 {[%clk 0:01:02]} 60. Re8+ {[%clk 0:00:02]}  Kf4 {[%clk 0:01:02]} 61. Ra8 {[%clk 0:00:02]}  Kg3 {[%clk 0:01:02]} 62. Kg1 {[%clk 0:00:01]}  e3 {[%clk 0:01:01]} 0-1


[Site "https://www.chess.com"]

[Event "Titled Tuesday Blitz November 30 2021"]
[White "Azarov, Sergei"]
[Black "Borsuk, Konstantin"]
[WhiteFideId "13501470"]
[BlackFideId "14113406"]
[WhiteElo "2494"]
[BlackElo "2406"]
[Result "1-0"]
[Round "10"]
[TimeControl "180+1"]
[Date "2021.11.30"]
[WhiteClock "0:00:03"]
[BlackClock "0:00:01"]

1. e4 {[%clk 0:03:00]}  e6 {[%clk 0:02:59]} 2. d4 {[%clk 0:03:00]}  d5 {[%clk 0:03:00]} 3. Nd2 {[%clk 0:03:00]}  Nf6 {[%clk 0:02:57]} 4. e5 {[%clk 0:03:00]}  Nfd7 {[%clk 0:02:57]} 5. Bd3 {[%clk 0:03:01]}  c5 {[%clk 0:02:58]} 6. c3 {[%clk 0:03:02]}  Nc6 {[%clk 0:02:58]} 7. Ne2 {[%clk 0:03:02]}  b6 {[%clk 0:02:59]} 8. O-O {[%clk 0:02:57]}  cxd4 {[%clk 0:02:59]} 9. cxd4 {[%clk 0:02:57]}  Nb4 {[%clk 0:02:59]} 10. Bb1 {[%clk 0:02:57]}  Ba6 {[%clk 0:03:00]} 11. Nf3 {[%clk 0:02:49]}  Be7 {[%clk 0:02:58]} 12. a3 {[%clk 0:02:43]}  Nc6 {[%clk 0:02:58]} 13. Re1 {[%clk 0:02:40]}  g6 {[%clk 0:02:49]} 14. Nf4 {[%clk 0:02:05]}  Qc7 {[%clk 0:02:43]} 15. Nh3 {[%clk 0:01:58]}  O-O-O {[%clk 0:02:41]} 16. Bg5 {[%clk 0:01:55]}  Kb7 {[%clk 0:02:31]} 17. Bc2 {[%clk 0:01:49]}  h6 {[%clk 0:02:30]} 18. Bxe7 {[%clk 0:01:47]}  Nxe7 {[%clk 0:02:29]} 19. Ba4 {[%clk 0:01:47]}  b5 {[%clk 0:02:24]} 20. Bc2 {[%clk 0:01:39]}  g5 {[%clk 0:02:23]} 21. Nd2 {[%clk 0:01:38]}  Ng6 {[%clk 0:02:17]} 22. Bxg6 {[%clk 0:01:35]}  fxg6 {[%clk 0:02:17]} 23. Rc1 {[%clk 0:01:34]}  Qb6 {[%clk 0:02:11]} 24. Nb3 {[%clk 0:01:34]}  b4 {[%clk 0:02:08]} 25. Qd2 {[%clk 0:01:19]}  Bc4 {[%clk 0:02:00]} 26. Nc5+ {[%clk 0:01:15]}  Nxc5 {[%clk 0:01:53]} 27. dxc5 {[%clk 0:01:15]}  Qb5 {[%clk 0:01:46]} 28. b3 {[%clk 0:01:03]}  Bd3 {[%clk 0:01:34]} 29. a4 {[%clk 0:01:02]}  Qa6 {[%clk 0:01:31]} 30. Qxb4+ {[%clk 0:01:02]}  Kc6 {[%clk 0:01:16]} 31. Qc3 {[%clk 0:00:54]}  d4 {[%clk 0:01:10]} 32. Qa1 {[%clk 0:00:50]}  Bf5 {[%clk 0:01:02]} 33. b4 {[%clk 0:00:49]}  Qd3 {[%clk 0:00:53]} 34. b5+ {[%clk 0:00:49]}  Kc7 {[%clk 0:00:52]} 35. Red1 {[%clk 0:00:47]}  Qe4 {[%clk 0:00:45]} 36. f3 {[%clk 0:00:42]}  Qe3+ {[%clk 0:00:42]} 37. Nf2 {[%clk 0:00:41]}  g4 {[%clk 0:00:40]} 38. Re1 {[%clk 0:00:39]}  Qd2 {[%clk 0:00:36]} 39. fxg4 {[%clk 0:00:38]}  Rhg8 {[%clk 0:00:26]} 40. gxf5 {[%clk 0:00:31]}  gxf5 {[%clk 0:00:26]} 41. Qa3 {[%clk 0:00:28]}  d3 {[%clk 0:00:15]} 42. c6 {[%clk 0:00:20]}  Qg5 {[%clk 0:00:13]} 43. g3 {[%clk 0:00:17]}  d2 {[%clk 0:00:14]} 44. Qc5 {[%clk 0:00:14]}  Ra8 {[%clk 0:00:11]} 45. Qd6+ {[%clk 0:00:13]}  Kb6 {[%clk 0:00:11]} 46. c7+ {[%clk 0:00:13]}  Ka5 {[%clk 0:00:12]} 47. Rc5 {[%clk 0:00:09]}  dxe1=Q+ {[%clk 0:00:10]} 48. Kg2 {[%clk 0:00:10]}  Qxg3+ {[%clk 0:00:03]} 49. hxg3 {[%clk 0:00:09]}  Rxg3+ {[%clk 0:00:04]} 50. Kxg3 {[%clk 0:00:09]}  f4+ {[%clk 0:00:02]} 51. Kf3 {[%clk 0:00:04]}  Qe3+ {[%clk 0:00:02]} 52. Kg2 {[%clk 0:00:04]}  f3+ {[%clk 0:00:01]} 53. Kh3 {[%clk 0:00:03]} 1-0


[Site "https://www.chess.com"]

[Event "Titled Tuesday Blitz November 30 2021"]
[White "Durarbayli, Vasif"]
[Black "Le, Tuan Minh"]
[WhiteFideId "13402935"]
[BlackFideId "12401153"]
[WhiteElo "2522"]
[BlackElo "2450"]
[Result "0-1"]
[Round "10"]
[TimeControl "180+1"]
[Date "2021.11.30"]
[WhiteClock "0:00:01"]
[BlackClock "0:00:07"]

1. e4 {[%clk 0:03:00]}  c5 {[%clk 0:03:00]} 2. Nf3 {[%clk 0:03:00]}  Nf6 {[%clk 0:03:00]} 3. e5 {[%clk 0:02:59]}  Nd5 {[%clk 0:03:00]} 4. Nc3 {[%clk 0:02:59]}  e6 {[%clk 0:03:00]} 5. Nxd5 {[%clk 0:02:58]}  exd5 {[%clk 0:03:01]} 6. d4 {[%clk 0:02:58]}  Nc6 {[%clk 0:03:01]} 7. dxc5 {[%clk 0:02:48]}  Bxc5 {[%clk 0:03:01]} 8. Be2 {[%clk 0:02:38]}  d6 {[%clk 0:03:00]} 9. exd6 {[%clk 0:02:38]}  Qxd6 {[%clk 0:03:00]} 10. O-O {[%clk 0:02:38]}  O-O {[%clk 0:03:00]} 11. Bg5 {[%clk 0:02:37]}  Re8 {[%clk 0:03:00]} 12. Bh4 {[%clk 0:02:35]}  Bb6 {[%clk 0:02:55]} 13. Bg3 {[%clk 0:02:19]}  Qf6 {[%clk 0:02:49]} 14. c3 {[%clk 0:02:13]}  d4 {[%clk 0:02:28]} 15. cxd4 {[%clk 0:02:02]}  Nxd4 {[%clk 0:02:29]} 16. Nxd4 {[%clk 0:02:02]}  Bxd4 {[%clk 0:02:30]} 17. Bf3 {[%clk 0:01:28]}  Bxb2 {[%clk 0:02:17]} 18. Qa4 {[%clk 0:01:27]}  Bf5 {[%clk 0:02:08]} 19. Rae1 {[%clk 0:01:25]}  Rxe1 {[%clk 0:00:49]} 20. Rxe1 {[%clk 0:01:26]}  h5 {[%clk 0:00:44]} 21. Bxb7 {[%clk 0:01:24]}  Rd8 {[%clk 0:00:39]} 22. h4 {[%clk 0:00:44]}  Be6 {[%clk 0:00:24]} 23. Bf3 {[%clk 0:00:38]}  Bc3 {[%clk 0:00:21]} 24. Rd1 {[%clk 0:00:27]}  Rxd1+ {[%clk 0:00:13]} 25. Bxd1 {[%clk 0:00:27]}  Bd4 {[%clk 0:00:05]} 26. Bxh5 {[%clk 0:00:20]}  g6 {[%clk 0:00:05]} 27. Bf3 {[%clk 0:00:20]}  Bb6 {[%clk 0:00:05]} 28. h5 {[%clk 0:00:18]}  gxh5 {[%clk 0:00:05]} 29. Bxh5 {[%clk 0:00:18]}  Qg5 {[%clk 0:00:04]} 30. Qh4 {[%clk 0:00:05]}  Qxh4 {[%clk 0:00:05]} 31. Bxh4 {[%clk 0:00:06]}  Bxa2 {[%clk 0:00:05]} 32. Bf6 {[%clk 0:00:07]}  Bb3 {[%clk 0:00:05]} 33. g4 {[%clk 0:00:03]}  a5 {[%clk 0:00:06]} 34. g5 {[%clk 0:00:03]}  Bc2 {[%clk 0:00:06]} 35. Bf3 {[%clk 0:00:02]}  a4 {[%clk 0:00:06]} 36. Bd5 {[%clk 0:00:02]}  Bc5 {[%clk 0:00:04]} 37. Kg2 {[%clk 0:00:02]}  a3 {[%clk 0:00:04]} 38. f4 {[%clk 0:00:02]}  Be3 {[%clk 0:00:03]} 39. Kg3 {[%clk 0:00:03]}  Bc1 {[%clk 0:00:03]} 40. Kg4 {[%clk 0:00:03]}  Bb2 {[%clk 0:00:03]} 41. Bxb2 {[%clk 0:00:02]}  axb2 {[%clk 0:00:04]} 42. Ba2 {[%clk 0:00:02]}  Kg7 {[%clk 0:00:04]} 43. f5 {[%clk 0:00:02]}  b1=Q {[%clk 0:00:05]} 44. Bxb1 {[%clk 0:00:02]}  Bxb1 {[%clk 0:00:06]} 45. Kf4 {[%clk 0:00:02]}  Bc2 {[%clk 0:00:06]} 46. Ke5 {[%clk 0:00:03]}  Bd3 {[%clk 0:00:06]} 47. Kf4 {[%clk 0:00:03]}  Kf8 {[%clk 0:00:07]} 48. Ke5 {[%clk 0:00:03]}  Ke7 {[%clk 0:00:07]} 49. Kf4 {[%clk 0:00:02]}  Kd6 {[%clk 0:00:07]} 50. Kg4 {[%clk 0:00:02]}  Ke5 {[%clk 0:00:07]} 51. f6 {[%clk 0:00:01]}  Bg6 {[%clk 0:00:07]} 0-1


[Site "https://www.chess.com"]

[Event "Titled Tuesday Blitz November 30 2021"]
[White "Gasanov, Eldar"]
[Black "Ianov, Viktor"]
[WhiteFideId "14104466"]
[BlackFideId "14102730"]
[WhiteElo "2454"]
[BlackElo "2307"]
[Result "1-0"]
[Round "10"]
[TimeControl "180+1"]
[Date "2021.11.30"]
[WhiteClock "0:00:03"]
[BlackClock "0:00:22"]

1. d4 {[%clk 0:03:00]}  d6 {[%clk 0:02:59]} 2. e4 {[%clk 0:02:59]}  Nf6 {[%clk 0:02:59]} 3. Nc3 {[%clk 0:02:58]}  c6 {[%clk 0:02:59]} 4. f4 {[%clk 0:02:57]}  Qb6 {[%clk 0:02:59]} 5. Be2 {[%clk 0:02:50]}  g6 {[%clk 0:02:57]} 6. Nf3 {[%clk 0:02:45]}  Bg4 {[%clk 0:02:56]} 7. O-O {[%clk 0:02:42]}  Bg7 {[%clk 0:02:56]} 8. Rb1 {[%clk 0:02:35]}  O-O {[%clk 0:02:55]} 9. Be3 {[%clk 0:02:35]}  Nbd7 {[%clk 0:02:52]} 10. h3 {[%clk 0:02:30]}  Bxf3 {[%clk 0:02:51]} 11. Bxf3 {[%clk 0:02:31]}  e5 {[%clk 0:02:51]} 12. Qd3 {[%clk 0:02:13]}  Qc7 {[%clk 0:02:50]} 13. Rbd1 {[%clk 0:02:11]}  Rad8 {[%clk 0:02:48]} 14. a4 {[%clk 0:02:05]}  a5 {[%clk 0:02:46]} 15. Rfe1 {[%clk 0:02:01]}  Rfe8 {[%clk 0:02:45]} 16. Qc4 {[%clk 0:01:51]}  Nb6 {[%clk 0:02:38]} 17. Qb3 {[%clk 0:01:50]}  Nfd7 {[%clk 0:02:35]} 18. fxe5 {[%clk 0:01:42]}  dxe5 {[%clk 0:02:34]} 19. d5 {[%clk 0:01:42]}  Bf8 {[%clk 0:02:31]} 20. d6 {[%clk 0:01:25]}  Bxd6 {[%clk 0:02:26]} 21. Rxd6 {[%clk 0:01:24]}  Qxd6 {[%clk 0:02:26]} 22. Bxb6 {[%clk 0:01:25]}  Nxb6 {[%clk 0:02:26]} 23. Qxb6 {[%clk 0:01:26]}  Qd4+ {[%clk 0:02:26]} 24. Qxd4 {[%clk 0:01:25]}  exd4 {[%clk 0:02:26]} 25. Nb1 {[%clk 0:01:15]}  b5 {[%clk 0:02:23]} 26. Nd2 {[%clk 0:01:12]}  Re5 {[%clk 0:02:16]} 27. Ra1 {[%clk 0:01:04]}  Ra8 {[%clk 0:01:58]} 28. Nb3 {[%clk 0:00:57]}  bxa4 {[%clk 0:01:49]} 29. Nxd4 {[%clk 0:00:57]}  Rc5 {[%clk 0:01:34]} 30. Rxa4 {[%clk 0:00:56]}  Rb8 {[%clk 0:01:34]} 31. b3 {[%clk 0:00:52]}  Rb4 {[%clk 0:01:34]} 32. Rxb4 {[%clk 0:00:44]}  axb4 {[%clk 0:01:34]} 33. e5 {[%clk 0:00:36]}  Rxe5 {[%clk 0:01:33]} 34. Nxc6 {[%clk 0:00:36]}  Rb5 {[%clk 0:01:30]} 35. Bd5 {[%clk 0:00:35]}  Kf8 {[%clk 0:01:27]} 36. Bc4 {[%clk 0:00:34]}  Rb6 {[%clk 0:01:26]} 37. Ne5 {[%clk 0:00:34]}  Rb7 {[%clk 0:01:20]} 38. Nxf7 {[%clk 0:00:31]}  Ke7 {[%clk 0:01:17]} 39. Kf2 {[%clk 0:00:25]}  Rd7 {[%clk 0:01:13]} 40. Ke2 {[%clk 0:00:21]}  Kf6 {[%clk 0:01:09]} 41. g4 {[%clk 0:00:20]}  g5 {[%clk 0:01:08]} 42. Nh6 {[%clk 0:00:19]}  Rd4 {[%clk 0:01:03]} 43. Bd3 {[%clk 0:00:18]}  Rd7 {[%clk 0:01:00]} 44. Kf3 {[%clk 0:00:17]}  Rc7 {[%clk 0:00:58]} 45. Nf5 {[%clk 0:00:16]}  Ke5 {[%clk 0:00:56]} 46. Ne3 {[%clk 0:00:16]}  h6 {[%clk 0:00:55]} 47. Nf5 {[%clk 0:00:16]}  Rc6 {[%clk 0:00:54]} 48. Ke3 {[%clk 0:00:17]}  Rc3 {[%clk 0:00:50]} 49. Nd4 {[%clk 0:00:15]}  Rc8 {[%clk 0:00:45]} 50. Nf3+ {[%clk 0:00:14]}  Kd5 {[%clk 0:00:44]} 51. Be4+ {[%clk 0:00:15]}  Kc5 {[%clk 0:00:43]} 52. Nd4 {[%clk 0:00:15]}  Re8 {[%clk 0:00:42]} 53. Nc6 {[%clk 0:00:14]}  Re6 {[%clk 0:00:41]} 54. Nd4 {[%clk 0:00:13]}  Re8 {[%clk 0:00:41]} 55. Nf5 {[%clk 0:00:11]}  Re6 {[%clk 0:00:41]} 56. Kd3 {[%clk 0:00:11]}  Rf6 {[%clk 0:00:40]} 57. Ke3 {[%clk 0:00:08]}  Re6 {[%clk 0:00:39]} 58. Kf3 {[%clk 0:00:07]}  Rf6 {[%clk 0:00:39]} 59. Bd3 {[%clk 0:00:07]}  Re6 {[%clk 0:00:39]} 60. Kg3 {[%clk 0:00:07]}  Rf6 {[%clk 0:00:39]} 61. h4 {[%clk 0:00:07]}  Re6 {[%clk 0:00:38]} 62. h5 {[%clk 0:00:07]}  Rf6 {[%clk 0:00:38]} 63. Kf3 {[%clk 0:00:07]}  Re6 {[%clk 0:00:38]} 64. Be4 {[%clk 0:00:08]}  Rf6 {[%clk 0:00:37]} 65. Ke3 {[%clk 0:00:07]}  Re6 {[%clk 0:00:37]} 66. Kd3 {[%clk 0:00:07]}  Rf6 {[%clk 0:00:37]} 67. c3 {[%clk 0:00:08]}  bxc3 {[%clk 0:00:37]} 68. Kxc3 {[%clk 0:00:09]}  Kb5 {[%clk 0:00:36]} 69. Nd4+ {[%clk 0:00:07]}  Kb6 {[%clk 0:00:36]} 70. Nf5 {[%clk 0:00:07]}  Re6 {[%clk 0:00:35]} 71. Kd4 {[%clk 0:00:07]}  Kb5 {[%clk 0:00:33]} 72. Kd5 {[%clk 0:00:06]}  Rb6 {[%clk 0:00:32]} 73. Bd3+ {[%clk 0:00:07]}  Kb4 {[%clk 0:00:32]} 74. Bc4 {[%clk 0:00:07]}  Rf6 {[%clk 0:00:32]} 75. Ke5 {[%clk 0:00:07]}  Rb6 {[%clk 0:00:31]} 76. Be6 {[%clk 0:00:08]}  Kc3 {[%clk 0:00:30]} 77. Nxh6 {[%clk 0:00:08]}  Kd3 {[%clk 0:00:30]} 78. Nf7 {[%clk 0:00:04]}  Rb5+ {[%clk 0:00:28]} 79. Kf6 {[%clk 0:00:04]}  Ke4 {[%clk 0:00:28]} 80. Nxg5+ {[%clk 0:00:04]}  Kf4 {[%clk 0:00:28]} 81. Nf7 {[%clk 0:00:04]}  Rb6 {[%clk 0:00:25]} 82. h6 {[%clk 0:00:05]}  Rb8 {[%clk 0:00:23]} 83. h7 {[%clk 0:00:05]}  Rf8 {[%clk 0:00:23]} 84. g5 {[%clk 0:00:05]}  Re8 {[%clk 0:00:22]} 85. g6 {[%clk 0:00:05]}  Rf8 {[%clk 0:00:22]} 86. g7 {[%clk 0:00:03]} 1-0


[Site "https://www.chess.com"]